Cogmind - Beta 16.1 @@@ ROGUE MODE // 2026.01.19 @ 18:38:10 Player: H3-MLN Result: Destroyed by RP-1FS(R) with Subdweller Machine Gun Performance ------------- Evolutions (0) 0 Regions Visited (2) 400 Robots Destroyed (28) 140 Value Destroyed (632) 632 Prototype IDs (13) 260 Alien Tech Used (0) 0 Bonus (120) 120 TOTAL SCORE: 1552 Bonus ------- Follower Combat Kills 120 Cogmind --------- Core Integrity 0/250 Matter 253/300 Energy 41/100 System Corruption 2% Temperature Cool (0) Movement Rolling (100) Location -10/Subcaves Parts ------- > --- POWER (1) -------- (None) > --- PROPULSION (2) --- Armored Wheel Subdweller Monowheel > --- UTILITY (2) ------ Large Storage Unit Makeshift Light Armor Plating > --- WEAPON (2) ------- Subdweller Machine Gun Battle Cannon > --- INVENTORY (15) --- Cargo Legs Armored Wheel Subdweller Monowheel Scrap Shield Subdweller Laser Subdweller Laser Heavy Assault Rifle Subdweller Machine Gun Datajack Multitool Mining Claw Peak State ------------ > --- POWER ------------ Backup Power I > --- PROPULSION ------- Armored Wheel Subdweller Monowheel > --- UTILITY ---------- Large Storage Unit Hardened Light Armor Plating > --- WEAPON ----------- Battle Rifle Battle Cannon > --- INVENTORY -------- Cargo Legs Armored Wheel Subdweller Monowheel Flight Unit Makeshift Light Armor Plating Subdweller Laser Subdweller Laser Heavy Assault Rifle Subdweller Machine Gun Subdweller Machine Gun Grenade Launcher Datajack Multitool Mining Claw [Rating: 16] Favorites ----------- Power Backup Power I Engine Backup Power I Propulsion Armored Wheel Treads Light Treads Wheel Armored Wheel Flight Unit Flight Unit Utility Large Storage Unit Device Heat Sink Storage Large Storage Unit Protection Hardened Light Armor Plating Weapon Subdweller Machine Gun Energy Gun Medium Laser Ballistic Gun Subdweller Machine Gun Ballistic Cannon Battle Cannon Launcher Grenade Launcher Slashing Weapon Mining Claw Special Melee Weapon Datajack Build | -11 -10 -10 ------- Run | Yrd Mat Sub Slots Evolved . | . . . Power . | . . . Propulsion . | . . . Utility . | . . . Weapon . | . . . Parts Attached 35 | 7 14 14 Power 2 | 1 1 . Engine 2 | 1 1 . Core . | . . . Reactor . | . . . Propulsion 11 | 2 6 3 Treads 2 | . 1 1 Leg . | . . . Wheel 7 | 2 3 2 Hover . | . . . Flight 2 | . 2 . Utility 6 | 2 3 1 Device 2 | 1 1 . Storage 2 | 1 1 . Processor . | . . . Hackware . | . . . Protection 2 | . 1 1 Artifact . | . . . Weapon 16 | 2 4 10 Energy Gun 6 | 1 3 2 Energy Cannon . | . . . Ballistic Gun 6 | 1 . 5 Ballistic Cannon 1 | . . 1 Launcher 1 | . 1 . Special Weapon . | . . . Impact Weapon . | . . . Slashing Weapon 1 | . . 1 Piercing Weapon . | . . . Special Melee Weapon 1 | . . 1 Unidentified Prototypes . | . . . Parts Lost 6 | . 1 5 Power 1 | . . 1 Propulsion 2 | . . 2 Utility 2 | . 1 1 Weapon 1 | . . 1 Highest Loss Streak 3 | . 1 3 To Critical Strikes . | . . . Average Backups 10 | 2 7 12 Power . | . . . Propulsion 4 | 1 2 4 Utility 1 | . . 2 Weapon 3 | . 2 4 Tool/Special . | . . . Unused Backups 15 | . 1 14 Power 1 | . . 1 Propulsion 3 | . . 3 Utility 7 | . . 7 Weapon 3 | . 1 2 Tool/Special 1 | . . 1 Average Slot Usage (%) 97 | . 92 99 Engine 12 | . 10 13 Treads 2 | . 4 2 Wheel 23 | . 18 25 Flight 1 | . 4 . Device 3 | . 9 . Storage 14 | . 14 14 Protection 9 | . 1 14 Energy Gun 12 | . 14 12 Ballistic Gun 12 | . 11 12 Ballistic Cannon 1 | . . 1 Launcher 1 | . 1 . Peak Build Rating 16 | 8 12 16 Average Rating 11 | 5 7 13 On Entrance 6 | . 8 12 Avg Prop Armor Cover (%) 5 | . 5 5 Naked Turns . | . . . Heaviest Build 34 | 14 30 34 Greatest Support 32 | 20 24 32 Greatest Overweight (x) 1 | . 1 1 Average Overweight (x) . | . . . Largest Inventory Capacity 15 | 8 15 15 Average Capacity 12 | 7 8 15 Most Carried 15 | 7 15 15 Average Carried 11 | 4 8 13 Final Capacity 15 | 8 15 15 Final Carried 15 | 6 15 13 Class Distribution -------------------- 100% | Mutant Dominant Class ---------------- Mutant | -10/Materials Mutant | -10/Subcaves Resources | -11 -10 -10 ----------- Run | Yrd Mat Sub Matter Collected 893 | 275 264 354 Remotely . | . . . Salvage Created 771 | 87 243 441 Parts 61 | 6 19 36 Haulers Intercepted . | . . . Recyclers Shooed . | . . . Parts Field Recycled . | . . . Retrieved Matter . | . . . Parts Self-Destructed 15 | . . 15 Prevented . | . . . Parts Restored . | . . . Kills | -11 -10 -10 ------- Run | Yrd Mat Sub Combat Hostiles Destroyed 23 | . 10 13 Guns 12 | . 3 9 AOE 10 | . 6 4 Classes Destroyed 8 | 2 4 2 Tunneler 1 | 1 . . Recycler 1 | 1 . . Operator 2 | . 2 . Watcher 1 | . 1 . Swarmer 11 | . 6 5 Grunt 4 | . 4 . Sentry 1 | . . 1 Subdweller 7 | . . 7 Best Kill Streak 4 | 2 3 4 Combat Bots Only 4 | . 3 4 Max Kills in Single Turn 4 | 1 3 4 Gunslinging . | . . . Exploded 4 | . 3 4 Melee . | . . . Uniques/NPCs Destroyed . | . . . Combat | -11 -10 -10 -------- Run | Yrd Mat Sub Hostile Shots Fired 89 | . 36 53 Missed 16 | . 7 9 Hits 73 | . 29 44 Projectile 73 | . 29 44 AOE 1 | . . 1 Damage Taken 1352 | . 326 1026 Core 250 | . 55 195 Absorbed by Shields . | . . . Core Remaining (%) 100 | 100 . . Volleys Fired 72 | 5 33 34 Largest 2 | 2 2 2 Hottest 100 | 60 60 100 Shots Fired 139 | 10 63 66 Gun 129 | 10 60 59 Cannon 5 | . . 5 Launcher 5 | . 3 2 Special . | . . . Kinetic 71 | 5 31 35 Thermal 63 | 5 29 29 Explosive 5 | . 3 2 Electromagnetic . | . . . Robot Hit Streak 14 | 4 11 14 Robot Miss Streak 4 | 1 4 2 Penetration Max . | . . . Secondary Targets 2 | . 1 1 Max Gunslinging Chain 1 | . 1 1 Shots Hit Robots 98 | 6 40 52 Core Hits 42 | 3 16 23 Critical Kills 1 | . . 1 Critical Parts Destroyed . | . . . Critical Strikes 1 | . . 1 Destroy 1 | . . 1 Melee Attacks 7 | . . 7 Impact . | . . . Slashing 6 | . . 6 Piercing . | . . . Sneak Attacks 1 | . . 1 Combat Hostiles . | . . . Follow-up Attacks . | . . . Damage Inflicted 1990 | 83 751 1156 Guns 1359 | 83 463 813 Cannons 67 | . . 67 Explosions 515 | . 285 230 Melee 46 | . . 46 Ramming 3 | . 3 . Kinetic 731 | 49 216 466 Thermal 695 | 34 247 414 Explosive 515 | . 285 230 Electromagnetic . | . . . Impact . | . . . Slashing 46 | . . 46 Piercing . | . . . Highest Corruption 2 | . 2 2 Average Corruption 2 | . 2 2 Corruption Purged . | . . . Corruption Blocked . | . . . Effects 25 | . 8 17 Message Errors 3 | . 1 2 Matter Fused 9 | . 4 5 Heat Flow Errors 2 | . . 2 Energy Discharges 4 | . . 4 Parts Fused 1 | . . 1 Data Loss (minor) 1 | . . 1 Data Loss (major) 3 | . 2 1 Misfires 2 | . 1 1 Overload Shots . | . . . Overflow Damage 20 | . . 20 Projectiles . | . . . Explosions 20 | . . 20 Melee . | . . . Knockbacks 2 | . . 2 Impact . | . . . Kinetic 2 | . . 2 Secondary . | . . . Self-Inflicted Damage 83 | . . 83 Shots 2 | . . 2 Rammed 2 | . 2 . Targets Rammed 2 | . 2 . Kicked . | . . . Crushed . | . . . Highest Temperature 216 | . 120 216 Average Temperature 50 | . 50 52 Received Heat Transfer 366 | . 162 204 Siege Activations . | . . . Martial Activations . | . . . Shielding Activations . | . . . Robots Disrupted . | . . . Combat Hostiles . | . . . Robots Corrupted . | . . . Combat Hostiles . | . . . Parts Fried . | . . . Impact Corruptions . | . . . Robots Melted 1 | . 1 . Combat Hostiles 1 | . 1 . Parts Melted 2 | . 1 1 Heat Transferred 1406 | 75 550 781 Parts Sabotaged . | . . . Parts Stolen . | . . . Parts Stripped . | . . . Power Chain Reactions . | . . . Alert | -11 -10 -10 ------- Run | Yrd Mat Sub Maximum Alert Level . | . . . Low Security (%) 100 | 100 100 . Level 1 . | . . . Level 2 . | . . . Level 3 . | . . . Level 4 . | . . . Level 5 . | . . . High Security . | . . . Max Security . | . . . Peak Influence 115 | 5 115 . Initial . | . . . Average 42 | 1 46 . Influence Increases 555 | 10 395 150 Destroy 0b10 Robot/C 320 | . 200 120 Destroy 0b10 Robot/NC 25 | 10 15 . Destroy Leader 42 | . 42 . Successful Hack 37 | . 37 . Select Force Hacks 30 | . 30 . Destroy Structure 26 | . 26 . Lose Combat Pursuer 75 | . 45 30 Influence Decreases 468 | 10 325 133 Entered New Map 34 | . . 34 Time Decay 394 | 10 315 69 Lost Part 40 | . 10 30 Squads Dispatched 3 | . 3 . Investigation 1 | . 1 . Extermination . | . . . Reinforcement 2 | . 2 . Assault . | . . . Garrison . | . . . Intercept . | . . . Searches Triggered . | . . . Construction Impeded . | . . . Haulers Reinforced . | . . . Active Scanning Responses . | . . . Cargo Convoy Interrupts . | . . . Stealth | -11 -10 -10 --------- Run | Yrd Mat Sub Distress Signals 2 | . 2 . Communications Jammed . | . . . Distress Signals . | . . . Times Spotted 42 | . 20 22 Peak Tracking Total 6 | . 6 6 Tactical Retreats 3 | . 2 1 Traps | -11 -10 -10 ------- Run | Yrd Mat Sub Traps Triggered 2 | . 1 1 Indirectly . | . . . Trap Hack Attempts . | . . . Triggered . | . . . Disarmed . | . . . Reprogrammed . | . . . Reused . | . . . Traps Extracted . | . . . Installed . | . . . Triggered . | . . . Machines | -11 -10 -10 ---------- Run | Yrd Mat Sub Machines Disabled 1 | . . 1 Max in Single Turn 1 | . . 1 Machines Repaired . | . . . Machines Dismantled . | . . . Machines Sabotaged . | . . . Overloaded Fab Kills . | . . . Hacking | -11 -10 -10 --------- Run | Yrd Mat Sub Machines Accessed 10 | . 8 2 Terminals 6 | . 6 . Fabricators . | . . . Repair Stations 1 | . 1 . Recycling Units 1 | . 1 . Scanalyzers . | . . . Garrison Access . | . . . Total Hacks 27 | . 21 6 Successful 15 | . 9 6 Failed 11 | . 11 . Catastrophic 4 | . 4 . Database Lockouts 1 | . 1 . Manual 12 | . 12 . Terminals 18 | . 18 . Fabricators . | . . . Repair Stations 1 | . 1 . Recycling Units 2 | . 2 . Scanalyzers . | . . . Garrison Access . | . . . Terminal Hacks 11 | . 5 6 Record 5 | . . 5 Part Schematic 1 | . 1 . Robot Analysis 1 | . 1 . Branch Access Points 1 | . 1 . Locate Traps 2 | . 2 . Proto ID Catalog 1 | . . 1 Fabricator Hacks . | . . . Repair Station Hacks 1 | . 1 . Refit 1 | . 1 . Recycling Unit Hacks 1 | . 1 . Report Inventory 1 | . 1 . Scanalyzer . | . . . Garrison Access Hacks . | . . . Unauthorized Hacks 2 | . 2 . Terminals 1 | . 1 . Assimilate 1 | . 1 . Fabricators . | . . . Repair Stations . | . . . Recycling Units 1 | . 1 . Tunnel 1 | . 1 . Scanalyzers . | . . . Garrison Access . | . . . Data Cores Recovered . | . . . Used . | . . . Hacking Detections 5 | . 5 . Full Trace Events 1 | . 1 . Feedback Events . | . . . Feedback Blocked . | . . . Robot Schematics Acquired . | . . . Robots Built . | . . . Authchips . | . . . Time . | . . . Total Robot Build Rating . | . . . Part Schematics Acquired 1 | . 1 . Parts Built . | . . . Authchips . | . . . Time . | . . . Total Part Build Rating . | . . . Part Studies Acquired . | . . . Parts Repaired . | . . . Time . | . . . Parts Recycled . | . . . Recycled Matter . | . . . Retrieved Matter . | . . . Retrieved Components . | . . . Parts Scanalyzed . | . . . Part Schematics Acquired . | . . . Parts Damaged . | . . . Bothacking | -11 -10 -10 ------------ Run | Yrd Mat Sub Used RIF Installer . | . . . Robots Hacked 1 | . . 1 Non-combat . | . . . Combat 1 | . . 1 Robot Hacks Applied 1 | . . 1 parse_system 1 | . . 1 Relay Couplers Released . | . . . Fabnet Peak Effective % . | . . . Robots Rewired . | . . . Allies Hacked . | . . . Hacks Repelled . | . . . Allies | -11 -10 -10 -------- Run | Yrd Mat Sub Total Allies 1 | . . 1 Largest Group 1 | . . 1 Highest-Rated Group 46 | . . 46 Highest-Rated Ally 46 | . . 46 Total Orders . | . . . Ally Attacks 19 | . . 19 Total Damage 435 | . . 435 Kills 4 | . . 4 Allies Corrupted . | . . . Allies Melted 1 | . . 1 Intel | -11 -10 -10 ------- Run | Yrd Mat Sub Active Infowar (turns) 217 | 1 216 . Seismic 217 | 1 216 . Robot Analysis Total 1 | . 1 . Derelict Logs Recovered 1 | . . 1 Drone Launches . | . . . Drone Recoveries . | . . . Exploration | -11 -10 -10 ------------- Run | Yrd Mat Sub Turns Passed 2705 | 82 879 1744 Spaces Moved 1768 | 68 652 1048 Core 9 | 9 . . Treads 185 | . 84 101 Legs . | . . . Wheels 1253 | 59 247 947 Hover . | . . . Flight 321 | . 321 . Fastest Speed 37 | 50 37 100 Average Speed 100 | 76 72 118 Slowest Speed 240 | 80 160 240 Overloaded Moves . | . . . Propulsion Burnouts . | . . . Robots Hopped 5 | . 5 . Potential Cave-ins . | . . . Cave-ins Triggered . | . . . Exploration Rate (%) 53 | 4 78 79 Regions Visited 2 Branch Regions 1 Pre-discovered Areas 2 | . 1 1 Known Exits Taken . | . . . Unknown Exits Taken 2 | 1 1 . Scrap Searched 4 | . . 4 Spaces Dug 24 | . 24 . Terrain Destroyed 42 | . 24 18 Melee . | . . . Projectile . | . . . AOE 42 | . 24 18 Terrain Rammed . | . . . Walls Destroyed . | . . . Machines Disabled . | . . . Actions | -11 -10 -10 --------- Run | Yrd Mat Sub Total 2553 | 85 989 1479 Wait 580 | . 255 325 Move 1756 | 67 641 1048 Hop 5 | . 5 . Pick Up 44 | 6 18 20 Fast Attach 11 | 6 4 1 Attach 12 | 1 5 6 Detach 3 | . 3 . Swap 22 | . 9 13 Drop 39 | . 14 25 Fire 72 | 5 33 34 Melee 7 | . . 7 Ram . | . . . Kick . | . . . Crush 2 | . 2 . Escape Stasis . | . . . Rewire . | . . . Trap . | . . . Miscellaneous . | . . . Route ------- -11/Scrapyard -10/Materials (discovered 6 exits: [*Mat x3] / *Min x2 / *Sub) -10/Subcaves (discovered 2 exits: [*Mat] / [*Rec]) History --------- Turn | Location | Event 3 | -11/Scrapyard | Discovered new exit (range 15) 83 | -11/Scrapyard | Entered Materials 312 | -10/Materials | Build established: Mutant 543 | -10/Materials | Central database locked down 731 | -10/Materials | Discovered new exit (range 5) 776 | -10/Materials | Identified exit to Mines 782 | -10/Materials | Discovered new exit (range 11) 946 | -10/Materials | Discovered new exit (range 11) 956 | -10/Materials | Discovered new exit (range 8) 962 | -10/Materials | Entered Subcaves 1042 | -10/Subcaves | Visited 4L-MR0's lab 1078 | -10/Subcaves | Learned Materials terminal intel 1080 | -10/Subcaves | Visited Clippyterm 1083 | -10/Subcaves | Learned Research security intel 1083 | -10/Subcaves | Learned location of Deep Caves (-6) 1168 | -10/Subcaves | Core integrity fell below 50% 1458 | -10/Subcaves | Discovered new exit (range 10) 1548 | -10/Subcaves | A Subdweller sparked back to life 1548 | -10/Subcaves | A Subdweller sparked back to life 1577 | -10/Subcaves | Found Prototype Device 1841 | -10/Subcaves | Botcube activated 1861 | -10/Subcaves | Botcube completed mutation into treaded form, armed with 2 guns. 2020 | -10/Subcaves | Ambushed by Subdweller buried in earth 2020 | -10/Subcaves | Ambushed by Subdweller buried in earth 2025 | -10/Subcaves | Core integrity fell below 20% 2049 | -10/Subcaves | Found Cargo Legs 2256 | -10/Subcaves | Shifting Twisted Machinery released Battle Rifle 2264 | -10/Subcaves | Shifting Twisted Machinery released Battle Cannon 2547 | -10/Subcaves | Disturbed a concealed Subdweller 2687 | -10/Subcaves | Discovered new exit (range 14) 2706 | -10/Subcaves | Destroyed by RP-1FS(R) with Subdweller Machine Gun Last Messages --------------- 02581_ System corrupted: Matter fused (-7). 02582_ Searching scrap... 02582_ Found Flamer. 02582_ Found 52 Matter. 02583_ Acquired 7 matter. 02584_ Searching scrap... 02584_ Found Sub. Laser. 02584_ Found 34 Matter. 02609_ Subatomizers dissect the Disposable Heat Sink. 02673_ System corrupted: Matter fused (-5). 02687_ EXIT=FOUND 02688_ Backup Power I destroyed. 02692_ S-10 Pest destroyed. 02692_ Destroyed Flight Unit. 02692_ S-10 Pest destroyed. 02701_ System corrupted: Energy discharge (-40). 02701_ Hrd. Light Armor Plating destroyed. 02701_ Destroyed Hrd. Light Armor Plating. 02702_ Grenade Launcher destroyed. 02705_ 9V-GQ9(R) knocked back. Map ----- +----------------------------------------------------+ | ?????????# #???####????## ## #????## | | ?????????# ##??## ##?#### #???## | | ?????????? ###?# ### #??## | | ?????????? # ## #??# | | ?????????? ####?## | | ?????????? ####### | | ??????????### #?# ?# ### | | ?????????????##??# #?# ### | | ????????????????## #?# ##?##### | | ????????????????# ### ## #??????# | | ????????????????# ## ### ##??????? | | ?????????????????# ## #?###???????? | | ?????????????????# ###???????????? | | ????????????????## #?????????????? | | ????????????????# ###????????????## | | ??????????####### # ##??????????????# | | ??????????# # ## #???????????????# | | ??????????# ##### # ### #???????????????# | | ????????????#""$# ##?#"" ##???????????????# | | ??????????#?#$"$## #?## " ######????????????????## | | ??????????# #" ""# #?#""" #??????????????????????? | | ??????????# ##"$"# #### ##??????????????????????? | | ??????????# # #? ##?????????????????????# | | ??????????# = #?##R ###??????????????????## | | ??????????## = [% ##?# R ###????????????????# | | ???????????# %=* ### @ "#????????????????# | | ???????????## =%##### # "#???????????????## | | ????????????# % #???## # #???????????????????# | | ????????????# #????####?##" ??????????????????? | | ????????????# #??????????? #?????????????????? | | ????????????# #???????????? #?????????????????? | | ????????????# #????????????? #?????????????????? | | ???????????? ?????????????? ?????????????????? | | ??????????? ???????????????#????????????????? | | ??????????? ????????????????????????????????? | | ??????????" ????????????????????????????????? | | ??????????" " " ????????????????????????????????? | | ??????????"""" ""????????????????????????????????? | | ???????????###